Cogmind - Beta 13 X1 @@@ ROGUE MODE // 2023.07.08 @ 03:49:27 Player: WayneKnight Result: Destroyed by H-81 Overseer with Heavy Linear Accelerator Performance ------------- Evolutions (9) 4500 Regions Visited (23) 4600 Robots Destroyed (110) 550 Value Destroyed (4193) 4193 Prototype IDs (28) 560 Alien Tech Used (3) 600 Bonus (2123) 2123 TOTAL SCORE: 17126 Bonus ------- High Alert Combat Kills 109 Follower Combat Kills 1714 Met Imprinter 300 Cogmind --------- Core Integrity 0/1600 Matter 201/300 Energy 97/100 System Corruption 2% Temperature Cool (0) Movement Core (50) Location -1/Access Parts ------- > --- POWER (2) -------- (None) > --- PROPULSION (9) --- (None) > --- UTILITY (13) ----- (None) > --- WEAPON (2) ------- (None) > --- INVENTORY (5) ---- Medium Storage Unit Advanced Signal Interpreter Magnetic Acceleration Cannon Sigix Corpse Peak State ------------ > --- POWER ------------ Micro Fission Core Micro Antimatter Reactor > --- PROPULSION ------- Xenon Bombardment Thruster Xenon Bombardment Thruster Cooled Nuclear Pulse Thruster Field Propulsion Array Q-thruster Q-thruster Cooled Impulse Thruster > --- UTILITY ---------- Advanced Cryofiber Web Large Storage Unit Advanced Sensor Array Advanced Signal Interpreter Advanced Terrain Scan Processor Advanced Transmission Jammer Makeshift Hacking Suite Improved System Shield Advanced System Shield > --- WEAPON ----------- Sigix Broadsword > --- INVENTORY -------- Light Fission Core Neutrino Core Particle Reactor Nuclear Pulse Array Impulse Thruster Medium Storage Unit Advanced Signal Interpreter Particle Accelerator Subatomic Replicator Magnetic Acceleration Cannon Improved Proton Missile Launcher Force Lance Plasma Lance Sigix Corpse [Rating: 150] Favorites ----------- Power Makeshift Power Source Engine Makeshift Power Source Power Core Micro Fission Core Reactor Micro Antimatter Reactor Propulsion Light Treads Treads Light Treads Leg Aluminum Leg Wheel Armored Huge Wheel Hover Unit Gravmag Array Flight Unit Field Propulsion Array Utility Large Storage Unit Device Improved Sensor Array Storage Large Storage Unit Processor Advanced Visual Processing Unit Hackware Makeshift Hacking Suite Protection Core Shielding Weapon Spread Laser Energy Gun Spread Laser Ballistic Gun Minigun Ballistic Cannon Magnetic Acceleration Cannon Launcher Heavy Rocket Launcher Special Weapon RU-N14's Throwing Claymores Impact Weapon Hammer Slashing Weapon Greatsword Piercing Weapon Force Lance Special Melee Weapon Advanced Datajack Build | -11 -10 -10 -10 -9 -8 -7 -7 -7 -7 -7 -7 -6 -6 -6 -6 -6 -6 -5 -4 -3 -3 -2 -1 ------- Run | Jun Mat Min Exi Min Mat Fac Was Fac Low Low Zio Pro Fac Was Fac Ext Cet Fac Fac Res Qua Res Acc Slots Evolved 18 | . . . . . 4 2 . . . . . . 2 . . . . 2 2 2 . 2 2 Power . | . . . . . . . . . . . . . . . . . . . . . . . . Propulsion 7 | . . . . . 1 1 . . . . . . 1 . . . . 1 1 1 . . 1 Utility 11 | . . . . . 3 1 . . . . . . 1 . . . . 1 1 1 . 2 1 Weapon . | . . . . . . . . . . . . . . . . . . . . . . . . Parts Attached 246 | 3 12 1 1 2 17 21 1 25 9 1 8 2 16 7 15 9 . 18 19 24 6 20 9 Power 32 | . . . 1 . 1 3 . 3 1 . 1 . 2 . 4 4 . 3 . 1 4 3 1 Engine 18 | . . . 1 . 1 3 . 1 1 . 1 . 1 . 4 4 . 1 . . . . . Core 8 | . . . . . . . . 2 . . . . 1 . . . . 2 . . 2 1 . Reactor 6 | . . . . . . . . . . . . . . . . . . . . 1 2 2 1 Propulsion 64 | 2 2 . . 1 4 6 . 3 2 . . . 2 . 5 . . 4 9 12 1 6 5 Treads 9 | 2 2 . . 1 4 . . . . . . . . . . . . . . . . . . Leg . | . . . . . . . . . . . . . . . . . . . . . . . . Wheel 1 | . . . . . . . . . . . . . 1 . . . . . . . . . . Hover 31 | . . . . . . 6 . 2 2 . . . . . 5 . . 3 5 . . 3 5 Flight 23 | . . . . . . . . 1 . . . . 1 . . . . 1 4 12 1 3 . Utility 104 | . 4 1 . 1 9 8 1 17 5 . 2 . 12 3 5 2 . 7 8 10 . 8 1 Device 59 | . 1 . . . 6 3 . 14 4 . . . 7 . 3 1 . 3 6 8 . 3 . Storage 8 | . 2 . . . 2 . . . . . . . 1 . . . . . . . . 3 . Processor 10 | . . 1 . . . 4 . . . . . . 1 . . 1 . . 1 . . 1 1 Hackware 8 | . . . . . . 1 . 1 1 . 2 . . 1 . . . . . 1 . 1 . Protection 19 | . 1 . . 1 1 . 1 2 . . . . 3 2 2 . . 4 1 1 . . . Artifact . | . . . . . . . . . . . . . . . . . . . . . . . . Weapon 46 | 1 6 . . . 3 4 . 2 1 1 5 2 . 4 1 3 . 4 2 1 1 3 2 Energy Gun 9 | 1 5 . . . 3 . . . . . . . . . . . . . . . . . . Energy Cannon . | . . . . . . . . . . . . . . . . . . . . . . . . Ballistic Gun 1 | . . . . . . 1 . . . . . . . . . . . . . . . . . Ballistic Cannon 4 | . . . . . . . . 1 . . . . . . . . . 2 . . . . 1 Launcher 2 | . . . . . . . . . . 1 . . . . . . . . . . . 1 . Special Weapon 3 | . . . . . . . . . . . 3 . . . . . . . . . . . . Impact Weapon 2 | . 1 . . . . . . . . . . . . 1 . . . . . . . . . Slashing Weapon 12 | . . . . . . 2 . 1 1 . 2 2 . 1 1 1 . . . . 1 . . Piercing Weapon 12 | . . . . . . 1 . . . . . . . 2 . 2 . 2 2 1 . 2 . Special Melee Weapon 1 | . . . . . . . . . . . . . . . . . . . . . . . 1 Unidentified Prototypes 16 | . . . . . 1 1 . 2 . 1 2 . . 1 . . . 1 . 3 2 2 . Corrupted Parts 2 | . . . . . 2 . . . . . . . . . . . . . . . . . . System Corruption 3 | . . . . . 3 . . . . . . . . . . . . . . . . . . Parts Lost 74 | . . . . 1 5 . . 1 6 1 . . 8 . . 4 . 1 1 9 . 25 12 Power 12 | . . . . . 1 . . . 1 . . . 1 . . 3 . 1 . 1 . 3 1 Propulsion 31 | . . . . . 2 . . 1 3 . . . 3 . . . . . 1 3 . 12 6 Utility 24 | . . . . . 2 . . . 1 1 . . 3 . . 1 . . . 4 . 8 4 Weapon 7 | . . . . 1 . . . . 1 . . . 1 . . . . . . 1 . 2 1 Highest Loss Streak 16 | . . . . 1 2 . . 1 3 1 . . 6 . . 2 . 1 1 8 . 16 10 To Critical Strikes . | . . . . . . . . . . . . . . . . . . . . . . . . Average Slot Usage (%) 87 | . 92 100 100 96 98 83 84 83 80 64 70 81 79 64 86 88 87 93 82 85 86 59 26 Engine 9 | . 14 14 14 14 8 7 7 1 6 7 10 14 9 8 12 9 6 6 . . . . . Core 1 | . . . . . . . . 5 . . . . 1 . . . . 2 10 8 4 2 . Treads 13 | . 28 28 28 27 26 3 . . . . . . . . . . . . . . . . . Hover 8 | . . . . . . 17 23 23 20 14 14 14 10 . 15 25 25 27 7 5 . 2 9 Flight 1 | . . . . . . . . . . . . . 3 . . . . . 14 18 28 18 . Device 7 | . 1 . . . 16 17 7 7 8 9 7 7 10 . 8 10 12 14 13 16 13 6 . Storage 10 | . 14 14 14 14 17 7 7 7 7 7 7 7 5 6 6 6 6 5 5 4 4 3 . Processor 8 | . . 2 14 9 . 16 17 15 15 14 14 14 12 12 12 12 12 11 13 12 9 6 9 Hackware 5 | . . . . . . 1 7 11 12 4 9 14 11 12 12 12 12 11 10 9 13 9 2 Protection 3 | . 7 11 . 4 10 . 5 2 . . . . . 7 3 . . 1 . . . . . Energy Gun 11 | . 25 28 28 25 18 3 . . . . . . . 3 . . . . . . . . . Slashing Weapon 3 | . . . . . . 5 7 6 7 4 7 10 11 6 6 6 6 4 . . . 2 . Piercing Weapon 1 | . . . . . . 1 . . . . . . . . 6 5 6 4 6 8 7 2 . Naked Turns . | . . . . . . . . . . . . . . . . . . . . . . . . Heaviest Build 60 | 14 32 31 30 34 51 42 34 35 39 39 43 41 47 43 57 55 42 60 55 48 52 55 19 Greatest Support 86 | 40 40 40 40 40 60 47 37 37 40 40 40 40 49 28 48 48 48 70 58 56 56 56 86 Greatest Overweight (x) 3 | . . . . 1 1 2 . 1 1 . 1 1 1 1 3 1 . 1 2 3 . 2 2 Average Overweight (x) . | . . . . . . . . . . . . . . . . . . . . . . . . Largest Inventory Capacity 15 | 8 15 15 15 15 15 15 15 15 15 15 15 15 15 15 15 15 15 15 15 15 15 15 5 Average Capacity 14 | 8 11 15 15 15 15 15 15 15 15 15 15 15 14 15 15 15 15 15 15 15 15 11 5 Most Carried 15 | 6 12 13 15 15 15 15 15 15 14 15 15 15 15 11 15 15 14 15 15 15 15 15 5 Average Carried 12 | 6 9 11 14 15 12 14 14 14 10 12 14 15 13 7 13 13 14 14 14 14 11 10 4 Final Capacity 15 | 8 15 15 15 15 15 15 15 15 15 15 15 15 15 15 15 15 15 15 15 15 15 5 5 Final Carried 15 | 6 11 13 15 15 14 15 15 14 11 15 15 15 2 10 14 14 14 15 14 10 15 5 4 Class Distribution -------------------- 45% | Mutant 17% | Hacker-Scout 7% | Hacker-Ninja 7% | Hacker-Mutant 6% | Scavenger-Scout 5% | Commander-Mutant 3% | Hacker-Assassin Dominant Class ---------------- Mutant | -10/Materials Mutant | -10/Mines Commander-Mutant | -10/Exiles Mutant | -9/Mines Mutant | -8/Materials Scavenger-Scout | -7/Factory Scavenger-Scout | -7/Waste Hacker-Scout | -7/Factory Hacker-Scout | -7/Lower Caves Scout | -7/Lower Caves Hacker-Scout | -7/Zion Hacker-Scout | -6/Proximity Caves Hacker-Scout | -6/Factory Hacker-Mutant | -6/Waste Hacker-Scout | -6/Factory Hacker-Assassin | -6/Extension Hacker-Scout | -6/Cetus Hacker-Ninja | -5/Factory Hacker-Ninja | -4/Factory Hacker-Ninja | -3/Research Hacker-Sprinter | -3/Quarantine Hacker-Mutant | -2/Research Mutant | -1/Access Resources | -11 -10 -10 -10 -9 -8 -7 -7 -7 -7 -7 -7 -6 -6 -6 -6 -6 -6 -5 -4 -3 -3 -2 -1 ----------- Run | Jun Mat Min Exi Min Mat Fac Was Fac Low Low Zio Pro Fac Was Fac Ext Cet Fac Fac Res Qua Res Acc Matter Collected 2535 | 200 140 20 . 30 163 210 . 233 125 53 80 20 115 75 180 60 . 109 114 321 105 173 9 Remotely . | . . . . . . . . . . . . . . . . . . . . . . . . Salvage Created 4634 | . 488 . 131 138 466 235 . 414 207 16 118 209 285 . 65 196 . 206 114 522 119 672 33 Parts 245 | . 34 . 8 5 29 13 . 24 9 3 2 1 17 . 3 10 . 12 5 27 9 32 2 Haulers Intercepted 2 | . 1 . . . . . . . . . . . . . . . . . . 1 . . . Recyclers Shooed 2 | . . . . . . 1 . . . . . . 1 . . . . . . . . . . Parts Field Recycled . | . . . . . . . . . . . . . . . . . . . . . . . . Retrieved Matter . | . . . . . . . . . . . . . . . . . . . . . . . . Parts Self-Destructed 29 | . . . . . . . . . 11 1 1 16 . . . . . . . . . . . Prevented 8 | . . . . . . . . . 1 . . 7 . . . . . . . . . . . Kills | -11 -10 -10 -10 -9 -8 -7 -7 -7 -7 -7 -7 -6 -6 -6 -6 -6 -6 -5 -4 -3 -3 -2 -1 ------- Run | Jun Mat Min Exi Min Mat Fac Was Fac Low Low Zio Pro Fac Was Fac Ext Cet Fac Fac Res Qua Res Acc Combat Hostiles Destroyed 81 | . 15 . . 7 16 1 . 4 4 3 . 1 3 . 1 3 . 3 2 5 . 12 1 Melee 35 | . . . . . . 1 . 4 4 . . 1 3 . 1 3 . 3 2 5 . 8 . Guns 38 | . 15 . . 7 16 . . . . . . . . . . . . . . . . . . Cannons 1 | . . . . . . . . . . . . . . . . . . . . . . . 1 AOE 7 | . . . . . . . . . . 3 . . . . . . . . . . . 4 . Classes Destroyed 17 | . 5 . . 2 3 2 . 1 1 . . . 1 . . 1 . . . . 1 . . Worker 2 | . . . . . . . . 2 . . . . . . . . . . . . . . . Tunneler 1 | . 1 . . . . . . . . . . . . . . . . . . . . . . Hauler 2 | . 1 . . . . . . . . . . . . . . . . . . 1 . . . Recycler 3 | . . . . . . 1 . 1 . . . . . . . . . . . 1 . . . Operator 3 | . . . . . . . . . . . . . . . . 1 . . . . 1 1 . Watcher 18 | . 2 . . . 2 3 . 4 . . . . 2 . 1 . . 1 . 1 . 2 . Swarmer 29 | . 6 . . . 6 . . . 3 3 . . . . 1 . . . . 2 . 8 . Saboteur 1 | . . . . . . . . . . . . . 1 . . . . . . . . . . Grunt 21 | . 9 . . 2 7 . . . . . . . . . . 2 . 1 . . . . . Brawler 1 | . . . . . 1 . . . . . . . . . . . . . . . . . . Duelist 2 | . . . . 2 . . . . . . . . . . . . . . . . . . . Researcher 2 | . . . . . . . . . . . . . . . . . . . . . 2 . . Sentry 2 | . . . . . 1 . . . . . . . 1 . . . . . . . . . . Hunter 1 | . . . . . 1 . . . . . . . . . . . . . . . . . . Programmer 19 | . . . . . . 1 . 4 . . . 1 1 . . . . 2 2 3 . 4 1 Assembled 3 | . . . . 3 . . . . . . . . . . . . . . . . . . . Thug 1 | . . . . . . . . . . . . . . . . 1 . . . . . . . Savage 1 | . . . . . . . . . 1 . . . . . . . . . . . . . . Mutant 1 | . . . . . . . . . 1 . . . . . . . . . . . . . . Best Kill Streak 6 | . 6 . . 2 3 3 . 1 2 3 . 1 1 . 1 3 . 2 1 4 1 6 1 Combat Bots Only 5 | . 5 . . 2 3 1 . 1 2 3 . 1 1 . 1 2 . 2 1 4 . 5 1 Max Kills in Single Turn 3 | . 2 . . 1 1 1 . 1 1 2 . 1 1 . 1 1 . 1 1 1 1 3 1 Gunslinging . | . . . . . . . . . . . . . . . . . . . . . . . . Exploded 3 | . . . . . . . . . . 2 . . . . . . . . . . . 3 . Melee 1 | . . . . . . 1 . 1 1 . . 1 1 . 1 1 . 1 1 1 . 1 . Uniques/NPCs Destroyed . | . . . . . . . . . . . . . . . . . . . . . . . . Combat | -11 -10 -10 -10 -9 -8 -7 -7 -7 -7 -7 -7 -6 -6 -6 -6 -6 -6 -5 -4 -3 -3 -2 -1 -------- Run | Jun Mat Min Exi Min Mat Fac Was Fac Low Low Zio Pro Fac Was Fac Ext Cet Fac Fac Res Qua Res Acc Damage Taken 12886 | . 406 43 . 248 973 . . 397 691 135 . 54 932 . 156 550 38 457 351 1401 . 3621 2433 Core 4391 | . 57 . . 48 113 . . 82 138 . . . 119 . 27 203 . 59 65 414 . 1385 1681 Absorbed by Shields 47 | . . . . . . . . . . . . . . . . . . . . 47 . . . Redirected to Shielding 13 | . 2 . . . 11 . . . . . . . . . . . . . . . . . . Ignored by Resistances 68 | . . . . . . . . 68 . . . . . . . . . . . . . . . Regen/Repaired (Parts) 345 | . . . . . . . . 3 . . . . . 17 . . . . 20 . . 305 . Core Remaining (%) 69 | 100 . . . 58 79 . . . . . . 68 . . . . 58 94 94 . 68 4 . Volleys Fired 134 | . 38 2 4 22 44 . . 5 . 2 . . . . . . . 8 . . . 3 6 Largest 2 | . 2 1 2 2 2 . . 1 . 1 . . . . . . . 1 . . . 1 1 Hottest 130 | . 130 50 115 115 130 . . 48 . 39 . . . . . . . 53 . . . 43 53 Shots Fired 229 | . 66 2 8 42 87 . . 5 . 2 . . . . . . . 8 . . . 3 6 Gun 205 | . 66 2 8 42 87 . . . . . . . . . . . . . . . . . . Cannon 19 | . . . . . . . . 5 . . . . . . . . . 8 . . . . 6 Launcher 5 | . . . . . . . . . . 2 . . . . . . . . . . . 3 . Special . | . . . . . . . . . . . . . . . . . . . . . . . . Kinetic 19 | . . . . . . . . 5 . . . . . . . . . 8 . . . . 6 Thermal 187 | . 54 2 8 42 81 . . . . . . . . . . . . . . . . . . Explosive 2 | . . . . . . . . . . 2 . . . . . . . . . . . . . Electromagnetic 21 | . 12 . . . 6 . . . . . . . . . . . . . . . . 3 . Robot Hit Streak 16 | . 16 . 5 7 14 . . . . 4 . . . . . . . . . . . 7 13 Robot Miss Streak 11 | . 8 5 6 11 9 . . . . . . . . . . . . . . . . . . Penetration Max . | . . . . . . . . . . . . . . . . . . . . . . . . Secondary Targets 3 | . 2 . . . 1 . . . . . . . . . . . . . . . . . . Max Gunslinging Chain 1 | . 1 . . . 1 . . . . . . . . . . . . . . . . . . Shots Hit Robots 327 | . 52 . 5 33 75 9 . 24 17 2 3 5 9 . 3 9 . 18 6 15 3 33 6 Core Hits 276 | . 62 . 5 32 100 3 . 9 5 3 2 2 5 . 2 4 . 5 3 10 1 17 6 Critical Kills . | . . . . . . . . . . . . . . . . . . . . . . . . Critical Parts Destroyed . | . . . . . . . . . . . . . . . . . . . . . . . . Critical Strikes 14 | . . . . 2 . . . 1 . . . . . . . 2 . 1 4 3 . 1 . Burn 2 | . . . . 2 . . . . . . . . . . . . . . . . . . . Sever 2 | . . . . . . . . 1 . . . . . . . 1 . . . . . . . Impale 10 | . . . . . . . . . . . . . . . . 1 . 1 4 3 . 1 . Melee Attacks 425 | . 3 . . . . 29 . 79 29 1 3 8 41 1 20 25 . 41 23 47 10 63 2 Impact 3 | . 3 . . . . . . . . . . . . . . . . . . . . . . Slashing 249 | . . . . . . 23 . 79 29 1 3 8 41 1 16 9 . 5 . . . 34 . Piercing 171 | . . . . . . 6 . . . . . . . . 4 16 . 36 23 47 10 29 . Sneak Attacks 18 | . 1 . . . . 1 . 4 2 . . . 1 . . 2 . 2 . 2 3 . . Combat Hostiles . | . . . . . . . . . . . . . . . . . . . . . . . . Follow-up Attacks 15 | . . . . . . . . . . . . . 2 . 1 2 . 2 2 2 . 4 . Damage Inflicted 12146 | . 732 13 72 380 1109 491 . 1508 928 371 314 385 380 . 148 527 . 767 250 691 296 2524 260 Guns 2220 | . 664 13 72 364 1107 . . . . . . . . . . . . . . . . . . Cannons 206 | . . . . . . . . . . . . . . . . . . . . . . . 206 Explosions 1007 | . . . . . . . . . . 371 . . . . . . . . . . . 636 . Melee 8641 | . 68 . . . . 491 . 1508 928 . 314 385 380 . 148 527 . 767 250 691 296 1888 . Ramming 72 | . . . . 16 2 . . . . . . . . . . . . . . . . . 54 Kinetic 206 | . . . . . . . . . . . . . . . . . . . . . . . 206 Thermal 2402 | . 570 13 72 364 995 . . . . . . . . . . . . . . . . 388 . Explosive 371 | . . . . . . . . . . 371 . . . . . . . . . . . . . Electromagnetic 454 | . 94 . . . 112 . . . . . . . . . . . . . . . . 248 . Impact 68 | . 68 . . . . . . . . . . . . . . . . . . . . . . Slashing 5641 | . . . . . . 491 . 1508 928 . 314 385 380 . 89 84 . 83 . . . 1379 . Piercing 2932 | . . . . . . . . . . . . . . . 59 443 . 684 250 691 296 509 . Highest Corruption 20 | . . . . . 3 . 5 6 . . . . 4 1 1 . . . 4 7 7 20 2 Average Corruption 3 | . . . . . 2 . 5 2 . . . . 1 1 1 . . . 3 4 7 18 1 Corruption Purged 20 | . . . . . 3 . . 12 . . . . 4 . 1 . . . . . . . . Corruption Blocked . | . . . . . . . . . . . . . . . . . . . . . . . . Effects 58 | . . . . . 10 . . 8 . . . . 5 2 2 . . . 1 5 5 19 1 Message Errors 11 | . . . . . 4 . . . . . . . 2 . 1 . . . . . 1 3 . Matter Fused 18 | . . . . . 2 . . 3 . . . . 1 . . . . . . 2 2 7 1 Heat Flow Errors 14 | . . . . . 1 . . 3 . . . . 2 1 . . . . . 3 1 3 . Energy Discharges 4 | . . . . . . . . 1 . . . . . 1 . . . . . . 1 1 . Parts Fused 1 | . . . . . . . . . . . . . . . . . . . . . . 1 . Data Loss (minor) 3 | . . . . . 1 . . 1 . . . . . . 1 . . . . . . . . Data Loss (major) 4 | . . . . . 2 . . . . . . . . . . . . . 1 . . 1 . Misdirections 3 | . . . . . . . . . . . . . . . . . . . . . . 3 . Overload Shots . | . . . . . . . . . . . . . . . . . . . . . . . . Overflow Damage 1914 | . 48 . . . . 182 . 220 130 53 90 102 105 . . 211 . 30 102 108 98 435 . Projectiles . | . . . . . . . . . . . . . . . . . . . . . . . . Explosions 101 | . . . . . . . . . . 53 . . . . . 4 . . . . . 44 . Melee 1813 | . 48 . . . . 182 . 220 130 . 90 102 105 . . 207 . 30 102 108 98 391 . Knockbacks 4 | . . . . . . . . . . . . . . . . . . . . . . . 4 Impact . | . . . . . . . . . . . . . . . . . . . . . . . . Kinetic 4 | . . . . . . . . . . . . . . . . . . . . . . . 4 Secondary . | . . . . . . . . . . . . . . . . . . . . . . . . Self-Inflicted Damage 383 | . . . . . 88 . . . . . . . . . . 104 . . . . . 165 26 Shots 7 | . . . . . 1 . . . . . . . . . . 1 . . . . . 5 . Rammed 12 | . . . . 2 1 . . . . . . . . . . . . . . . . . 9 Targets Rammed 12 | . . . . 2 1 . . . . . . . . . . . . . . . . . 9 Kicked . | . . . . . . . . . . . . . . . . . . . . . . . . Crushed . | . . . . . . . . . . . . . . . . . . . . . . . . Highest Temperature 508 | . 372 29 108 508 261 . . 184 . . . . 221 121 . . . 100 127 92 . 319 48 Average Temperature 91 | . 107 18 45 156 66 . . 84 . . . . 109 63 . . . 27 70 44 . 133 30 Received Heat Transfer 1165 | . 123 24 . 6 360 . . 24 . 45 . 9 69 . 27 51 9 198 . 85 . 27 108 Effects 10 | . 1 . . 5 3 . . . . . . . . . . . . . . . . 1 . Shutdowns 3 | . 1 . . 2 . . . . . . . . . . . . . . . . . . . Interference 5 | . . . . 1 3 . . . . . . . . . . . . . . . . 1 . Damage (major) 2 | . . . . 2 . . . . . . . . . . . . . . . . . . . Siege Activations . | . . . . . . . . . . . . . . . . . . . . . . . . Robots Corrupted . | . . . . . . . . . . . . . . . . . . . . . . . . Combat Hostiles . | . . . . . . . . . . . . . . . . . . . . . . . . Parts Fried 2 | . . . . . . . . . . . . . . . . . . . . . . 2 . Impact Corruptions 1 | . 1 . . . . . . . . . . . . . . . . . . . . . . Robots Melted . | . . . . . . . . . . . . . . . . . . . . . . . . Combat Hostiles . | . . . . . . . . . . . . . . . . . . . . . . . . Parts Melted 5 | . . . . 1 1 . . . . . . . 1 . . 2 . . . . . . . Heat Transferred 3471 | . 820 37 141 933 1240 . . . . . . . . . . . . . . . . 300 . Parts Sabotaged 1 | . . . . . . . . . . . . . 1 . . . . . . . . . . Parts Stolen . | . . . . . . . . . . . . . . . . . . . . . . . . Parts Stripped . | . . . . . . . . . . . . . . . . . . . . . . . . Power Chain Reactions 2 | . . . . . . . . . . . . . . . . . . . . . . 2 . Missiles Intercepted . | . . . . . . . . . . . . . . . . . . . . . . . . Alert | -11 -10 -10 -10 -9 -8 -7 -7 -7 -7 -7 -7 -6 -6 -6 -6 -6 -6 -5 -4 -3 -3 -2 -1 ------- Run | Jun Mat Min Exi Min Mat Fac Was Fac Low Low Zio Pro Fac Was Fac Ext Cet Fac Fac Res Qua Res Acc Peak Influence 1171 | . 155 73 . 178 165 118 27 209 . . . . 296 140 1171 777 291 264 86 367 370 514 492 Initial 508 | . . 17 . . . 65 12 4 . . . . 39 100 . 508 276 162 7 10 206 207 256 Average 105 | . 35 19 . 21 50 58 13 57 . . . . 77 86 564 580 284 109 32 101 307 348 356 Maximum Alert Level 4 | . . . . . . . . 1 . . . . 1 . 4 3 1 1 . 1 1 2 2 Low Security (%) 86 | 100 100 100 . 100 100 100 100 99 . . . . 93 100 34 . . 75 100 86 . . . Level 1 7 | . . . . . . . . . . . . . 6 . 14 . 100 24 . 13 100 73 79 Level 2 3 | . . . . . . . . . . . . . . . 5 89 . . . . . 26 20 Level 3 1 | . . . . . . . . . . . . . . . 24 10 . . . . . . . Level 4 1 | . . . . . . . . . . . . . . . 20 . . . . . . . . Level 5 . | . . . . . . . . . . . . . . . . . . . . . . . . High Security . | . . . . . . . . . . . . . . . . . . . . . . . . Max Security . | . . . . . . . . . . . . . . . . . . . . . . . . Squads Dispatched 38 | . 3 . . . 3 1 . 5 . . . . 6 . 5 1 . 3 3 5 . 1 2 Investigation 9 | . 1 . . . 1 . . 1 . . . . 2 . . . . 1 1 1 . . 1 Extermination 11 | . . . . . . 1 . 2 . . . . 2 . 1 . . 1 2 . . 1 1 Reinforcement 13 | . 2 . . . 2 . . 2 . . . . 2 . 2 1 . 1 . 1 . . . Assault 2 | . . . . . . . . . . . . . . . 2 . . . . . . . . Garrison 3 | . . . . . . . . . . . . . . . . . . . . 3 . . . Intercept . | . . . . . . . . . . . . . . . . . . . . . . . . Searches Triggered . | . . . . . . . . . . . . . . . . . . . . . . . . Construction Impeded . | . . . . . . . . . . . . . . . . . . . . . . . . Haulers Reinforced 1 | . . . . . . . . 1 . . . . . . . . . . . . . . . Active Scanning Responses . | . . . . . . . . . . . . . . . . . . . . . . . . Cargo Convoy Interrupts 1 | . . . . . . . . . . . . . 1 . . . . . . . . . . Stealth | -11 -10 -10 -10 -9 -8 -7 -7 -7 -7 -7 -7 -6 -6 -6 -6 -6 -6 -5 -4 -3 -3 -2 -1 --------- Run | Jun Mat Min Exi Min Mat Fac Was Fac Low Low Zio Pro Fac Was Fac Ext Cet Fac Fac Res Qua Res Acc Distress Signals 18 | . 1 . . . 3 . . 1 . . . . 3 . 2 3 1 1 . 1 . 2 . Communications Jammed . | . . . . . . . . . . . . . . . . . . . . . . . . Distress Signals . | . . . . . . . . . . . . . . . . . . . . . . . . Times Spotted 323 | . 24 2 . 15 32 7 3 21 12 7 . 3 36 5 29 11 5 13 3 27 . 41 27 Peak Tracking Total 18 | . 4 2 . 3 4 1 4 3 5 7 . 6 15 4 9 4 5 2 2 14 . 18 16 Tactical Retreats 38 | . . . . 2 4 . . 2 3 1 . . 4 . 2 . . 3 1 7 . 6 3 Traps | -11 -10 -10 -10 -9 -8 -7 -7 -7 -7 -7 -7 -6 -6 -6 -6 -6 -6 -5 -4 -3 -3 -2 -1 ------- Run | Jun Mat Min Exi Min Mat Fac Was Fac Low Low Zio Pro Fac Was Fac Ext Cet Fac Fac Res Qua Res Acc Traps Triggered 22 | . 1 . . . . 1 . 5 . . . . 5 . . 2 . . 1 4 . 2 1 Indirectly . | . . . . . . . . . . . . . . . . . . . . . . . . Trap Hack Attempts . | . . . . . . . . . . . . . . . . . . . . . . . . Triggered . | . . . . . . . . . . . . . . . . . . . . . . . . Disarmed . | . . . . . . . . . . . . . . . . . . . . . . . . Reprogrammed . | . . . . . . . . . . . . . . . . . . . . . . . . Reused . | . . . . . . . . . . . . . . . . . . . . . . . . Traps Extracted . | . . . . . . . . . . . . . . . . . . . . . . . . Installed . | . . . . . . . . . . . . . . . . . . . . . . . . Triggered 1 | . . . . . 1 . . . . . . . . . . . . . . . . . . Machines | -11 -10 -10 -10 -9 -8 -7 -7 -7 -7 -7 -7 -6 -6 -6 -6 -6 -6 -5 -4 -3 -3 -2 -1 ---------- Run | Jun Mat Min Exi Min Mat Fac Was Fac Low Low Zio Pro Fac Was Fac Ext Cet Fac Fac Res Qua Res Acc Machines Disabled 15 | . . . . . 1 . . . 2 . . . 1 . 4 4 . . . . 3 . . Max in Single Turn 2 | . . . . . 1 . . . 1 . . . . . . 2 . . . . 1 . . Garrison Access 11 | . . . . . 1 2 . 3 . . . . . . 1 . . . . 2 . 2 . Energy Cycler 2 | . . . . . . . . . . . . . . . . 2 . . . . . . . Machines Repaired . | . . . . . . . . . . . . . . . . . . . . . . . . Machines Sabotaged . | . . . . . . . . . . . . . . . . . . . . . . . . Overloaded Fab Kills . | . . . . . . . . . . . . . . . . . . . . . . . . Hacking | -11 -10 -10 -10 -9 -8 -7 -7 -7 -7 -7 -7 -6 -6 -6 -6 -6 -6 -5 -4 -3 -3 -2 -1 --------- Run | Jun Mat Min Exi Min Mat Fac Was Fac Low Low Zio Pro Fac Was Fac Ext Cet Fac Fac Res Qua Res Acc Machines Accessed 107 | . 8 . 4 1 5 7 . 26 . . . . 3 . 6 4 . 7 6 11 10 7 2 Terminals 62 | . 6 . . 1 2 2 . 15 . . . . 3 . 3 4 . 3 3 6 10 3 1 Fabricators 12 | . . . . . . 1 . 5 . . . . . . 2 . . . 1 1 . 2 . Repair Stations 2 | . . . . . . . . 1 . . . . . . . . . . 1 . . . . Recycling Units 11 | . 2 . . . 1 1 . 2 . . . . . . . . . 3 1 1 . . . Scanalyzers 2 | . . . . . 1 . . . . . . . . . . . . . . 1 . . . Garrison Access 14 | . . . . . 1 3 . 3 . . . . . . 1 . . 1 . 2 . 2 1 Total Hacks 318 | . 19 . 49 2 11 16 . 79 . . . . 7 . 12 11 . 18 26 27 27 8 6 Successful 168 | . 9 . 49 1 9 6 . 44 . . . . 2 . 2 7 . 5 7 10 14 2 1 Failed 148 | . 9 . . 1 2 10 . 34 . . . . 5 . 10 4 . 13 19 17 13 6 5 Catastrophic 33 | . 1 . . . . 1 . 5 . . . . 2 . 1 2 . 3 4 7 3 2 2 Database Lockouts 2 | . 1 . . . . . . 1 . . . . . . . . . . . . . . . Manual 158 | . 14 . . . 4 7 . 41 1 . . . 7 . 13 8 . 7 16 17 17 4 2 Terminals 193 | . 17 . . 2 6 8 . 60 . . . . 7 . 5 11 . 8 15 19 27 4 4 Fabricators 24 | . . . . . . 3 . 11 . . . . . . 6 . . . 1 1 . 2 . Repair Stations 4 | . . . . . . . . 2 . . . . . . . . . . 2 . . . . Recycling Units 23 | . 2 . . . 1 1 . 2 . . . . . . . . . 8 8 1 . . . Scanalyzers 5 | . . . . . 3 . . . . . . . . . . . . . . 2 . . . Garrison Access 20 | . . . . . 1 4 . 4 . . . . . . 1 . . 2 . 4 . 2 2 Terminal Hacks 96 | . 5 . 49 1 3 . . 20 . . . . . . 1 5 . . . 2 10 . . Record 54 | . . . 49 1 . . . 1 . . . . . . . . . . . . 3 . . Part Schematic 4 | . . . . . . . . 2 . . . . . . . 1 . . . 1 . . . Robot Schematic 1 | . . . . . . . . 1 . . . . . . . . . . . . . . . Robot Analysis 7 | . 2 . . . 3 . . 2 . . . . . . . . . . . . . . . Prototype ID Bank 4 | . 1 . . . . . . 2 . . . . . . . . . . . . 1 . . Open Door 3 | . . . . . . . . . . . . . . . 1 2 . . . . . . . Level Access Points 1 | . . . . . . . . . . . . . . . . . . . . . 1 . . Branch Access Points 1 | . . . . . . . . 1 . . . . . . . . . . . . . . . Terminal Index 2 | . . . . . . . . 1 . . . . . . . . . . . . 1 . . Fabricator Index 1 | . . . . . . . . . . . . . . . . . . . . . 1 . . Alert Level 2 | . . . . . . . . 2 . . . . . . . . . . . . . . . Unreport Threat 1 | . . . . . . . . 1 . . . . . . . . . . . . . . . Locate Traps 5 | . 1 . . . . . . 3 . . . . . . . 1 . . . . . . . Hauler Manifests 2 | . 1 . . . . . . 1 . . . . . . . . . . . . . . . Zone Layout 8 | . . . . . . . . 3 . . . . . . . 1 . . . 1 3 . . Fabricator Hacks 1 | . . . . . . . . 1 . . . . . . . . . . . . . . . Build 1 | . . . . . . . . 1 . . . . . . . . . . . . . . . Repair Station Hacks 4 | . . . . . . . . 2 . . . . . . . . . . 2 . . . . Scan Component 2 | . . . . . . . . 1 . . . . . . . . . . 1 . . . . Repair 2 | . . . . . . . . 1 . . . . . . . . . . 1 . . . . Recycling Unit Hacks 12 | . 2 . . . 1 1 . 2 . . . . . . . . . 3 2 1 . . . Report Inventory 11 | . 2 . . . 1 1 . 2 . . . . . . . . . 3 1 1 . . . Retrieve Components 1 | . . . . . . . . . . . . . . . . . . . 1 . . . . Scanalyzer 3 | . . . . . 2 . . . . . . . . . . . . . . 1 . . . Insert Component 2 | . . . . . 1 . . . . . . . . . . . . . . 1 . . . Analyze 1 | . . . . . 1 . . . . . . . . . . . . . . . . . . Garrison Access Hacks 11 | . . . . . 1 2 . 3 . . . . . . 1 . . . . 2 . 2 . Seal Access 11 | . . . . . 1 2 . 3 . . . . . . 1 . . . . 2 . 2 . Unauthorized Hacks 41 | . 2 . . . 2 3 . 16 . . . . 2 . . 2 . 2 3 4 4 . 1 Terminals 37 | . 2 . . . 2 3 . 13 . . . . 2 . . 2 . 2 2 4 4 . 1 Track 10 | . . . . . . 1 . 6 . . . . . . . . . . . 2 1 . . Assimilate 3 | . . . . . . . . 1 . . . . . . . . . . . 1 . . 1 Botnet 23 | . 2 . . . 2 1 . 6 . . . . 2 . . 2 . 2 2 1 3 . . Operators 1 | . . . . . . 1 . . . . . . . . . . . . . . . . . Fabricators 4 | . . . . . . . . 3 . . . . . . . . . . 1 . . . . Liberate 1 | . . . . . . . . 1 . . . . . . . . . . . . . . . Fabnet 3 | . . . . . . . . 2 . . . . . . . . . . 1 . . . . Repair Stations . | . . . . . . . . . . . . . . . . . . . . . . . . Recycling Units . | . . . . . . . . . . . . . . . . . . . . . . . . Scanalyzers . | . . . . . . . . . . . . . . . . . . . . . . . . Garrison Access . | . . . . . . . . . . . . . . . . . . . . . . . . Data Cores Recovered 2 | . . . . . . . . . . . . . . . . . . . . . 1 1 . Used 2 | . . . . . . . . . . . . . . . . . . . . . 1 1 . Hacking Detections 76 | . 6 . . 1 3 5 . 19 . . . . 3 . 4 2 . 5 5 9 7 5 2 Full Trace Events 3 | . . . . . . . . . . . . . . . . . . 1 1 . . . 1 Feedback Events . | . . . . . . . . . . . . . . . . . . . . . . . . Feedback Blocked . | . . . . . . . . . . . . . . . . . . . . . . . . Robot Schematics Acquired 4 | . . . . . . . . 1 . . . . . . . . . . . . 3 . . Robots Built . | . . . . . . . . . . . . . . . . . . . . . . . . Authchips . | . . . . . . . . . . . . . . . . . . . . . . . . Time . | . . . . . . . . . . . . . . . . . . . . . . . . Total Robot Build Rating . | . . . . . . . . . . . . . . . . . . . . . . . . Part Schematics Acquired 10 | . . . . . 1 . . 2 . . . . . . . 1 . . . 1 5 . . Parts Built 2 | . . . . . . . . 2 . . . . . . . . . . . . . . . Authchips . | . . . . . . . . . . . . . . . . . . . . . . . . Time 47 | . . . . . . . . 47 . . . . . . . . . . . . . . . Total Part Build Rating 10 | . . . . . . . . 10 . . . . . . . . . . . . . . . Parts Repaired 2 | . . . . . . . . 1 . . . . . . . . . . 1 . . . . Time 51 | . . . . . . . . 26 . . . . . . . . . . 25 . . . . Parts Recycled . | . . . . . . . . . . . . . . . . . . . . . . . . Recycled Matter . | . . . . . . . . . . . . . . . . . . . . . . . . Retrieved Matter . | . . . . . . . . . . . . . . . . . . . . . . . . Retrieved Components 2 | . . . . . . . . . . . . . . . . . . . 2 . . . . Parts Scanalyzed 2 | . . . . . 1 . . . . . . . . . . . . . . 1 . . . Part Schematics Acquired 1 | . . . . . 1 . . . . . . . . . . . . . . . . . . Parts Damaged 1 | . . . . . . . . . . . . . . . . . . . . 1 . . . Bothacking | -11 -10 -10 -10 -9 -8 -7 -7 -7 -7 -7 -7 -6 -6 -6 -6 -6 -6 -5 -4 -3 -3 -2 -1 ------------ Run | Jun Mat Min Exi Min Mat Fac Was Fac Low Low Zio Pro Fac Was Fac Ext Cet Fac Fac Res Qua Res Acc Used RIF Installer . | . . . . . . . . . . . . . . . . . . . . . . . . Robots Hacked 9 | . . . . . . . . . . . . 1 2 . 2 3 . . . . . 1 . Non-combat . | . . . . . . . . . . . . . . . . . . . . . . . . Combat 9 | . . . . . . . . . . . . 1 2 . 2 3 . . . . . 1 . Robot Hacks Applied . | . . . . . . . . . . . . . . . . . . . . . . . . Relay Couplers Released . | . . . . . . . . . . . . . . . . . . . . . . . . Fabnet Peak Effective % 6 | . . . . . . . . . . . . 6 6 6 6 6 6 2 . 3 3 1 . Autooverrided 9 | . . . . . . . . . . . . 1 2 . 2 3 . . . . . 1 . Robots Rewired 11 | . . . 3 . . . . . 2 . . . . . . 6 . . . . . . . Allies Hacked 1 | . . . . . . . . 1 . . . . . . . . . . . . . . . Hacks Repelled . | . . . . . . . . . . . . . . . . . . . . . . . . Allies | -11 -10 -10 -10 -9 -8 -7 -7 -7 -7 -7 -7 -6 -6 -6 -6 -6 -6 -5 -4 -3 -3 -2 -1 -------- Run | Jun Mat Min Exi Min Mat Fac Was Fac Low Low Zio Pro Fac Was Fac Ext Cet Fac Fac Res Qua Res Acc Total Allies 61 | . . 5 3 1 . . 1 4 2 . 6 1 2 19 2 10 . . . 3 . 1 1 Largest Group 19 | . . 5 6 6 1 . 1 3 2 . 6 7 3 19 17 7 . . . 2 . 1 1 Highest-Rated Group 702 | . . 86 86 64 31 . 31 93 40 . 160 201 90 702 651 200 . . . 92 . 82 26 Highest-Rated Ally 90 | . . 31 31 31 31 . 31 31 20 . 39 41 90 50 50 31 . . . 46 . 82 26 Total Orders . | . . . . . . . . . . . . . . . . . . . . . . . . Ally Attacks 510 | . . 6 . 41 . . 9 29 8 . . 36 19 110 153 85 . . . 11 . 3 . Total Damage 13423 | . . 124 . 397 . . 189 407 273 . . 774 292 4143 4970 1619 . . . 206 . 29 . Kills 81 | . . 2 . 9 . . . 5 4 . . 6 4 8 36 7 . . . . . . . Allies Corrupted 1 | . . . . . . . . . . . . . . . 1 . . . . . . . . Allies Melted . | . . . . . . . . . . . . . . . . . . . . . . . . Intel | -11 -10 -10 -10 -9 -8 -7 -7 -7 -7 -7 -7 -6 -6 -6 -6 -6 -6 -5 -4 -3 -3 -2 -1 ------- Run | Jun Mat Min Exi Min Mat Fac Was Fac Low Low Zio Pro Fac Was Fac Ext Cet Fac Fac Res Qua Res Acc Robot Analysis Total 7 | . 2 . . . 3 . . 2 . . . . . . . . . . . . . . . Derelict Logs Recovered 8 | . . 1 . 2 . . . . 3 . 1 1 . . . . . . . . . . . Drone Launches . | . . . . . . . . . . . . . . . . . . . . . . . . Drone Recoveries . | . . . . . . . . . . . . . . . . . . . . . . . . Exploration | -11 -10 -10 -10 -9 -8 -7 -7 -7 -7 -7 -7 -6 -6 -6 -6 -6 -6 -5 -4 -3 -3 -2 -1 ------------- Run | Jun Mat Min Exi Min Mat Fac Was Fac Low Low Zio Pro Fac Was Fac Ext Cet Fac Fac Res Qua Res Acc Turns Passed 25972 | 9 4314 926 882 3282 2745 1495 39 2344 627 178 865 1117 1118 549 1231 472 51 1246 500 798 191 732 261 Spaces Moved 18636 | 4 881 494 517 1049 581 1456 76 2851 594 289 1158 1104 939 443 1046 349 72 897 777 1249 447 980 383 Core 204 | . . . . . . . . . . . . . 15 . . . . . . . . 24 165 Treads 3672 | 1 881 494 517 1049 581 149 . . . . . . . . . . . . . . . . . Legs 3 | 3 . . . . . . . . . . . . . . . . . . . . . . . Wheels 822 | . . . . . . . . . . . . . 50 443 329 . . . . . . . . Hover 11022 | . . . . . . 1307 76 2851 594 289 1158 1104 874 . 717 349 72 897 199 273 . 44 218 Flight 2913 | . . . . . . . . . . . . . . . . . . . 578 976 447 912 . Fastest Speed 20 | 120 160 160 160 160 160 48 48 48 48 56 56 56 50 100 71 71 71 53 31 23 20 20 46 Average Speed 76 | 130 160 160 160 160 165 70 48 48 53 56 56 73 59 110 88 90 71 65 38 32 21 31 54 Slowest Speed 300 | 160 160 160 160 240 240 240 48 106 111 56 106 106 115 115 300 141 71 131 146 280 23 180 150 Overloaded Moves . | . . . . . . . . . . . . . . . . . . . . . . . . Propulsion Burnouts . | . . . . . . . . . . . . . . . . . . . . . . . . Robots Hopped 5 | . . . . . . . . . . . . . . . . . . . . 4 1 . . Cave-ins Triggered . | . . . . . . . . . . . . . . . . . . . . . . . . Exploration Rate (%) 55 | 2 99 93 92 100 46 38 85 73 73 56 89 95 24 95 29 59 23 25 25 38 39 28 16 Regions Visited 23 Branch Regions 10 Pre-discovered Areas 3 | . . 1 1 . . . . . . . . 1 . . . . . . . . . . . Known Exits Taken 16 | . . 1 1 . 1 . . 1 1 1 1 1 . . 1 1 1 1 1 1 1 1 . Unknown Exits Taken 3 | 1 1 . . 1 . . . . . . . . . . . . . . . . . . . Scrap Searched 11 | . . 1 . 1 . . . . 4 2 2 1 . . . . . . . . . . . Spaces Dug 166 | . 1 . . . . 11 . 48 1 1 . 3 22 1 12 2 . 18 13 16 2 15 . Terrain Destroyed 289 | . 1 . . . 48 11 . 48 1 34 . 3 22 1 12 33 . 18 13 16 2 26 . Melee 157 | . 1 . . . . 11 . 45 1 1 . 3 22 1 12 2 . 12 13 16 2 15 . Projectile 9 | . . . . . . . . 3 . . . . . . . . . 6 . . . . . AOE 123 | . . . . . 48 . . . . 33 . . . . . 31 . . . . . 11 . Terrain Rammed . | . . . . . . . . . . . . . . . . . . . . . . . . Walls Destroyed . | . . . . . . . . . . . . . . . . . . . . . . . . Machines Disabled . | . . . . . . . . . . . . . . . . . . . . . . . . Actions | -11 -10 -10 -10 -9 -8 -7 -7 -7 -7 -7 -7 -6 -6 -6 -6 -6 -6 -5 -4 -3 -3 -2 -1 --------- Run | Jun Mat Min Exi Min Mat Fac Was Fac Low Low Zio Pro Fac Was Fac Ext Cet Fac Fac Res Qua Res Acc Total 29312 | 6 3717 627 566 2609 2280 1884 77 3658 842 301 1368 1396 1442 500 1316 464 71 1469 935 1555 527 1276 426 Wait 9516 | . 2763 129 . 1532 1620 339 . 677 203 5 188 280 446 43 217 8 . 501 85 218 59 187 16 Move 18605 | 3 880 493 516 1048 580 1456 75 2850 593 288 1157 1103 939 442 1045 348 71 896 776 1240 444 979 383 Hop 5 | . . . . . . . . . . . . . . . . . . . . 4 1 . . Pick Up 96 | . 8 2 4 1 8 15 1 8 3 1 5 1 3 3 9 . . 4 7 6 4 3 . Fast Attach 88 | . 4 . . 2 5 9 . 7 . 1 5 2 2 5 8 3 . 4 5 10 2 7 7 Attach 65 | . 1 . . . 7 2 . 4 5 1 3 . 4 1 . 4 . 2 10 9 2 8 2 Detach 35 | . 3 . . 1 1 1 . 1 . 2 1 . . 4 1 4 . 1 7 3 2 2 1 Swap 95 | 3 7 1 1 . 5 10 1 14 4 . . . 10 1 7 2 . 12 4 5 3 5 . Drop 118 | . 10 . 3 1 9 23 . 13 . . 6 2 4 . 13 . . 5 9 13 2 5 . Fire 134 | . 38 2 4 22 44 . . 5 . 2 . . . . . . . 8 . . . 3 6 Melee 389 | . 3 . . . . 29 . 79 29 1 3 8 34 1 16 18 . 36 21 42 8 59 2 Ram 9 | . . . . . . . . . . . . . . . . . . . . . . . 9 Kick . | . . . . . . . . . . . . . . . . . . . . . . . . Crush 3 | . . . . 2 1 . . . . . . . . . . . . . . . . . . Escape Stasis 60 | . . . . . . . . . . . . . . . . 26 . . 11 5 . 18 . Rewire 94 | . . . 38 . . . . . 5 . . . . . . 51 . . . . . . . Trap . | . . . . . . . . . . . . . . . . . . . . . . . . Miscellaneous . | . . . . . . . . . . . . . . . . . . . . . . . . Route ------- -11/Junkyard -10/Materials (discovered 5 exits: [*Mat x3] / [*Min] / *Sub) -10/Mines (discovered 4 exits: [*Mat x2] / *Exi / *Sub) -10/Exiles -9/Mines (discovered 2 exits: *Mat x2) -8/Materials (discovered 2 exits: *Fac x2) -7/Factory (discovered 2 exits: *Fac x2) -7/Waste -7/Factory (discovered 7 exits: *Fac x3 / *Sto x2 / *Low x2) -7/Lower Caves -7/Lower Caves (discovered 2 exits: *Fac / *Zio) -7/Zion -6/Proximity Caves -6/Factory (discovered 2 exits: *Fac / *Ext) -6/Waste -6/Factory (discovered 2 exits: *Fac / *Ext) -6/Extension (discovered 3 exits: *Fac x2 / *Cet) -6/Cetus -5/Factory (discovered 2 exits: *Fac x2) -4/Factory -3/Research -3/Quarantine -2/Research -1/Access History --------- Turn | Location | Event 1 | -11/Junkyard | Discovered new exit (range 3) 10 | -11/Junkyard | Entered Materials 302 | -10/Materials | Build established: Mutant 362 | -10/Materials | Discovered new exit (range 11) 1521 | -10/Materials | Discovered new exit (range 4) 1993 | -10/Materials | Discovered new exit (range 15) 3874 | -10/Materials | Discovered new exit (range 5) 4083 | -10/Materials | Central database locked down 4128 | -10/Materials | Discovered new exit (range 9) 4324 | -10/Materials | Entered Mines 4395 | -10/Mines | Discovered new exit (range 5) 4710 | -10/Mines | Learned location of Zion (-7) 4744 | -10/Mines | Assisted by bots powering up and referring to "LRC-V3" 4834 | -10/Mines | A weapon hastily lodged in a ceiling crevice suddenly fell to the ground 4847 | -10/Mines | Deemed a non-threat by the Exiles lab entrance 4849 | -10/Mines | Discovered new exit (range 5) 5026 | -10/Mines | Discovered new exit (range 13) 5074 | -10/Mines | Discovered new exit (range 6) 5086 | -10/Mines | Identified exit to Subcaves 5236 | -10/Mines | Identified exit to Exiles 5250 | -10/Mines | Entered Exiles 5250 | -10/Exiles | Found Exiles lab destroyed 5250 | -10/Exiles | Accompanied by 5 allies 5280 | -10/Exiles | Led the pair of lost Derelicts to a safe place 5657 | -10/Exiles | Build established: Commander-Mutant 6109 | -10/Exiles | Discovered new exit (range 14) 6130 | -10/Exiles | Identified exit to Mines 6132 | -10/Exiles | Entered Mines 6132 | -9/Mines | Accompanied by 6 allies 6663 | -9/Mines | Received a Rocket Launcher from a helpful Derelict 6719 | -9/Mines | Learned 4 Materials zone layouts 6728 | -9/Mines | Found a hidden stash of uninstalled traps 6906 | -9/Mines | Learned Materials interactive machine intel 6975 | -9/Mines | Build established: Mutant 7138 | -9/Mines | Assembled infested the area 8188 | -9/Mines | Discovered new exit (range 10) 8518 | -9/Mines | Discovered new exit (range 4) 9159 | -9/Mines | Received a Mining Laser from a helpful Derelict 9414 | -9/Mines | Entered Materials 9414 | -8/Materials | Accompanied by 1 ally 9414 | -8/Materials | Evolved 4 slots: Propulsion x1, Utility x3 9415 | -8/Materials | Identified exit to Factory 9416 | -8/Materials | Loaded intel: 19 interactive machine locations 11970 | -8/Materials | Discovered exit to Factory (range 11) 12159 | -8/Materials | Entered Factory 12159 | -7/Factory | Evolved 2 slots: Propulsion x1, Utility x1 12291 | -7/Factory | Build established: Infiltrator-Mutant 12823 | -7/Factory | Build established: Mutant 13072 | -7/Factory | Discovered new exit (range 9) 13075 | -7/Factory | Identified exit to Factory 13278 | -7/Factory | Discovered exit to Factory (range 19) 13361 | -7/Factory | Build established: Scavenger-Scout 13654 | -7/Factory | Sucked down chute 13654 | -7/Factory | Entered Waste 13655 | -7/Waste | Met a frightened Derelict 13658 | -7/Waste | Spotted C-40 Crusher 13664 | -7/Waste | Spotted C-40 Crusher 13667 | -7/Waste | Spotted C-40 Crusher 13669 | -7/Waste | EMP discharged 13669 | -7/Waste | Spotted C-40 Crusher 13677 | -7/Waste | Spotted C-40 Crusher 13683 | -7/Waste | Discovered new exit (range 20) 13693 | -7/Waste | Identified exit to Factory 13693 | -7/Waste | Entered Factory 13697 | -7/Factory | Discovered exit to Factory (range 7) 13881 | -7/Factory | Allied Derelicts emerged from ambush trap array 14032 | -7/Factory | Discovered new exit (range 12) 14083 | -7/Factory | Identified exit to Lower Caves 14245 | -7/Factory | Discovered exit to Factory (range 14) 14739 | -7/Factory | Discovered new exit (range 7) 14744 | -7/Factory | Identified exit to Storage 14821 | -7/Factory | Central database locked down 14850 | -7/Factory | Fabricated Imp. System Restoration Module? 14958 | -7/Factory | Discovered exit to Lower Caves (range 5) 15090 | -7/Factory | Build established: Hacker-Scout 15260 | -7/Factory | Repaired Broken Imp. Sensor Array 15786 | -7/Factory | Discovered exit to Factory (range 13) 16037 | -7/Factory | Entered Lower Caves 16049 | -7/Lower Caves | Attacked by a delusional Derelict stockpiling Unaware 16126 | -7/Lower Caves | Lost 3 parts (1p1n1w) 16458 | -7/Lower Caves | Spotted B-75 Beast 16466 | -7/Lower Caves | Learned Factory terminal intel 16534 | -7/Lower Caves | Learned Factory stockpile data 16540 | -7/Lower Caves | Lost 3 parts (2n1u) 16576 | -7/Lower Caves | Learned Factory stockpile data 16589 | -7/Lower Caves | Acquired the password to a Derelict Tinkerer's latest research 16595 | -7/Lower Caves | Found Prototype Special Weapon 16615 | -7/Lower Caves | Discovered new exit (range 15) 16617 | -7/Lower Caves | A Derelict revealed a hidden shortcut to a safe place 16658 | -7/Lower Caves | Caught by Unaware searching for contraband prototypes 16663 | -7/Lower Caves | Identified exit to Lower Caves 16664 | -7/Lower Caves | Entered another Lower Caves area 16680 | -7/Lower Caves | Discovered exit to Factory (range 14) 16712 | -7/Lower Caves | Found Alien Artifact 16712 | -7/Lower Caves | Identified Core Expander 16712 | -7/Lower Caves | Installed Core Expander, added new Power slot 16782 | -7/Lower Caves | Attracted the attention of an 0b10 base 16824 | -7/Lower Caves | Discovered new exit (range 16) 16842 | -7/Lower Caves | Identified exit to Zion 16842 | -7/Lower Caves | Entered Zion 16843 | -7/Zion | Identified Molecular Deconstructor 16857 | -7/Zion | Identified exit to Proximity Caves 17004 | -7/Zion | Build established: Scout 17068 | -7/Zion | Gained Derelict followers 17132 | -7/Zion | Learned Factory scanalyzer intel 17299 | -7/Zion | Gained Derelict followers 17480 | -7/Zion | Found Prototype Special Weapon 17480 | -7/Zion | Identified RU-N14's Throwing Claymores 17483 | -7/Zion | Found RU-N14's Throwing Claymores 17490 | -7/Zion | Found RU-N14's Throwing Claymores 17508 | -7/Zion | Found CR-A16's Pointy Stick 17528 | -7/Zion | Build established: Hacker-Scout 17707 | -7/Zion | Entered Proximity Caves 17707 | -6/Proximity Caves | Accompanied by 6 allies 18189 | -6/Proximity Caves | Learned location of Extension (-6) 18613 | -6/Proximity Caves | Build established: Hacker-Assassin 18629 | -6/Proximity Caves | P-60 Hacker assimilated allied GZ-Y0N(g) 18633 | -6/Proximity Caves | Discovered exit to Factory (range 6) 18824 | -6/Proximity Caves | Entered Factory 18824 | -6/Factory | Accompanied by 3 allies 18824 | -6/Factory | Evolved 2 slots: Propulsion x1, Utility x1 18826 | -6/Factory | Loaded intel: 27 terminal locations 18827 | -6/Factory | Loaded intel: 4 scanalyzer locations 19207 | -6/Factory | Discovered new exit (range 9) 19228 | -6/Factory | Discovered new exit (range 5) 19230 | -6/Factory | Identified exit to Factory 19495 | -6/Factory | Build established: Hacker-Scout 19778 | -6/Factory | Cargo convoy interrupted 19808 | -6/Factory | Local machine network offline 19840 | -6/Factory | Lost 6 parts (1p2n2u1w) 19942 | -6/Factory | Sucked down chute 19942 | -6/Factory | Entered Waste 19968 | -6/Waste | Spotted C-40 Crusher 20005 | -6/Waste | Spotted C-40 Crusher 20037 | -6/Waste | Spotted C-40 Crusher 20059 | -6/Waste | Spotted C-40 Crusher 20077 | -6/Waste | Spotted C-40 Crusher 20094 | -6/Waste | Warlord forces began an assault 20096 | -6/Waste | Allies destroyed C-40 Crusher 20101 | -6/Waste | Allies destroyed C-40 Crusher 20103 | -6/Waste | Allies destroyed C-40 Crusher 20106 | -6/Waste | Allies destroyed C-40 Crusher 20207 | -6/Waste | Spotted C-40 Crusher 20219 | -6/Waste | Allies destroyed C-40 Crusher 20256 | -6/Waste | Build established: Hacker-Mutant 20274 | -6/Waste | Allies destroyed C-40 Crusher 20393 | -6/Waste | Discovered new exit (range 12) 20474 | -6/Waste | Identified exit to Factory 20491 | -6/Waste | Entered Factory 20491 | -6/Factory | Accompanied by 17 allies 20891 | -6/Factory | Discovered exit to Factory (range 6) 21466 | -6/Factory | Discovered new exit (range 6) 21468 | -6/Factory | Identified exit to Extension 21541 | -6/Factory | First assault squad dispatched 21564 | -6/Factory | Build established: Hacker-Scout 21722 | -6/Factory | Entered Extension 21741 | -6/Extension | Disrupted transfer network 21768 | -6/Extension | Energy Cycler disabled 21768 | -6/Extension | Rescued a captive Derelict 21768 | -6/Extension | Rescued a captive Derelict 21768 | -6/Extension | Rescued a captive Derelict 21769 | -6/Extension | Rescued a captive Derelict 21769 | -6/Extension | Rescued a captive Derelict 21769 | -6/Extension | Rescued a captive Derelict 21770 | -6/Extension | Rescued a captive Derelict 21771 | -6/Extension | Rescued a captive Derelict 21771 | -6/Extension | Rescued a captive Derelict 21772 | -6/Extension | Rescued a captive Derelict 21775 | -6/Extension | Rescued a captive Derelict 21777 | -6/Extension | Rescued a captive Derelict 22085 | -6/Extension | Extracted ID and sensor layout for unrecognized location from A7's data core 22085 | -6/Extension | Spotted B-75 Beast 22091 | -6/Extension | Discovered exit to Factory (range 19) 22091 | -6/Extension | Spotted B-75 Beast 22174 | -6/Extension | Discovered new exit (range 19) 22174 | -6/Extension | Discovered exit to Factory (range 19) 22193 | -6/Extension | Identified exit to Cetus 22194 | -6/Extension | Entered Cetus 22215 | -6/Cetus | Spotted Cetus Guard 22215 | -6/Cetus | Spotted Cetus Guard 22215 | -6/Cetus | Spotted Cetus Guard 22215 | -6/Cetus | Spotted Cetus Guard 22230 | -6/Cetus | Discovered exit to Factory (range 21) 22245 | -6/Cetus | Entered Factory 22245 | -5/Factory | Evolved 2 slots: Propulsion x1, Utility x1 22742 | -5/Factory | Build established: Hacker-Ninja 22973 | -5/Factory | Discovered new exit (range 21) 23064 | -5/Factory | Identified exit to Factory 23446 | -5/Factory | Discovered exit to Factory (range 12) 23491 | -5/Factory | Entered another Factory area 23491 | -4/Factory | Evolved 2 slots: Propulsion x1, Utility x1 23543 | -4/Factory | Found Enh. Force Lance 23600 | -4/Factory | Repaired Adv. Sensor Array 23933 | -4/Factory | Discovered new exit (range 22) 23970 | -4/Factory | Identified exit to Research 23991 | -4/Factory | Entered Research 23991 | -3/Research | Evolved 2 slots: Propulsion x1, Utility x1 24165 | -3/Research | Spotted B-86 Titan 24463 | -3/Research | Allied Derelicts emerged from ambush trap array 24472 | -3/Research | Garrison activated, responded to threat 24767 | -3/Research | Lost 8 parts (1p3n4u) 24780 | -3/Research | Discovered new exit (range 12) 24782 | -3/Research | Identified exit to Quarantine 24789 | -3/Research | Entered Quarantine 24794 | -3/Quarantine | Identified exit to Research 24818 | -3/Quarantine | Found Sigix Corpse 24921 | -3/Quarantine | Found Alien Artifact 24943 | -3/Quarantine | Found Alien Slashing Weapon 24943 | -3/Quarantine | Identified Sigix Broadsword 24945 | -3/Quarantine | Identified Subatomic Replicator 24980 | -3/Quarantine | Entered Research 24980 | -2/Research | Evolved 2 slots: Utility x2 25373 | -2/Research | System corruption reached 10% 25448 | -2/Research | Lost 16 parts (3p6n6u1w) 25498 | -2/Research | Core integrity fell below 50% 25532 | -2/Research | Lost 3 parts (3n) 25587 | -2/Research | Spotted B-90 Cyclops 25600 | -2/Research | Found Prototype Processor 25600 | -2/Research | Identified Exp. Signal Interpreter 25703 | -2/Research | Core integrity fell below 20% 25708 | -2/Research | Discovered new exit (range 9) 25712 | -2/Research | Identified exit to Access 25712 | -2/Research | Entered Access 25712 | -1/Access | Evolved 2 slots: Propulsion x1, Utility x1 25735 | -1/Access | Lost 6 parts (3n2u1w) 25956 | -1/Access | Core integrity fell below 50% 25967 | -1/Access | Core integrity fell below 20% 25973 | -1/Access | Destroyed by H-81 Overseer with Heavy Linear Accelerator Last Messages --------------- 25926_ Imp. Antigrav System destroyed. 25926_ Penetrated by Slug. 25940_ Connecting with Garrison Access... 25940_ ALERT: Suspicious activity at Garrison Access A004. Dispatching Investigation squad. 25945_ Imp. Gyrokinetic Inverter destroyed. 25952_ Slug penetrates Wall. 25953_ System Shield destroyed. 25957_ Adv. Target Analyzer destroyed. 25958_ Imp. Gyrokinetic Inverter destroyed. 25962_ ALERT: Rogue bot located, Programmers report to Access Zone 2N. 25962_ Knocked back. 25966_ ALERT: Security rotation in progress. 25966_ Imp. Gyrokinetic Inverter destroyed. 25966_ Knocked back. 25966_ Slammed into K-01 Serf. 25968_ Exp. Signal Interpreter destroyed. 25968_ Critical hit (Blast). 25970_ Penetrated by Slug. 25973_ Adv. Terrain Scan Processor destroyed. Map ----- +----------------------------------------------------+ | | | | | | | | | | | | | ?????????????????????????????????????????????????? | | ?????????????????????????????????????????????????? | | ?????????????????????????????????????????????????? | | ?????????????????????????????????????????????????? | | ?????????????????????????????????????????????????? | | ?????????????????????????????????????????????????? | | ?????????????????????????????????????????????????? | | ?????????????????????????????????????????????????? | | ?????????????????????????????????????????????????? | | ?????????????????????????????????????????????????? | | ##########???????????????????????????????????????? | | #????????????####+####??????????????????? | | ############## #??????????????????? | | #??????????????????? | | #??????????????????? | | k % H #??????????????????? | | % #??????????????????? | | % %s #??????????????????? | | ##########+### k #??????????????????? | | ## * ###@ ###??????????????????? | | ####+###### #?# %#????????????????????? | | ?? ???# """"""" ## k ???????????????????? | | ?# """Y""" ### ?????????????????? | | """""" # #?# ???????????????? | | """""" # *#? !! ?????????????? | | """""" # #? ! ???????????? | | """""" #? ]] #? === ??????????? | | ??""""" #?? ]] #? ===???????????? | | ???????? #??? #? u= ???????????? | | ????????? #???? ! #? ????????????? | | #######################? ????????????? | | ?? ??????????????? | | #####/#########?????????##/#### ????????????????? | | ?# /#???????????s??????????????????????? | | ?# #??????????? ??????????????????????? | | ?#= #??????????????????????????????????? | | ?# !! ! #??????????????????????????????????? | | ?# ! #??????????????????????????????????? | | ?# #??????????????????????????????????? | | ?# #??????????????????????????????????? | | ?# #??????????????????????????????????? | | ?# #??????????????????????????????????? | | ?# #??????????????????????????????????? | | ?# #??????????????????????????????????? | +----------------------------------------------------+ Best States ------------- Heat Dissipation 52 Energy Generation 31 Energy Capacity 370 Matter Stores 300 Matter Capacity 300 Sight Range 22 Robot Scan Range 16 Terrain Scan Range 20 Terrain Scan Density 210 ECM Strength 1 Jamming Range 12 Additional Mass Support 9 Base Temperature (-) 200 EM Shielding 2 Armor Coverage 600 Resistance: EM 25 Core Shielding 20 Weapon Cycling 15 Evasion (%) 66 Melee Accuracy 5 Target Analysis 8 Core Analysis 6 Recoil Reduction 3 Particle Charging 15 Offensive Hacking 11 Defensive Hacking 26 Item Schematics ----------------- Imp. Signal Interpreter | -8/Materials | Scanalyzed EM Disruption Field | -7/Factory | Hacked Adv. ECM Suite | -7/Factory | Hacked Adv. Sensor Array | -6/Extension | Hacked Lrn. Sensor Array | -3/Research | Hacked Particle Accelerator | -3/Quarantine | Archive Lrn. Phase Cannon | -3/Quarantine | Archive Adv. Energy Well | -3/Quarantine | Archive Com. Mass Driver | -3/Quarantine | Archive Lgt. Antimatter Cannon | -3/Quarantine | Archive Robot Schematics ------------------ G-47 Trooper | -7/Factory | Hacked M-30 Cleanser | -3/Quarantine | Archive K-01 Serf | -3/Quarantine | Archive H-77 Assassin | -3/Quarantine | Archive Fabricated ------------ Imp. System Restoration Module | x2 | -7/Factory | Preloaded Alien Tech Used ----------------- Core Expander Sigix Broadsword Subatomic Replicator Achievements -------------- Origins Challenges ------------ None Game ------ Seed CoolingHybridRigger Manual? 0 Play Time 03:46:03 Cumulative 46.4 hours Start 2023.07.05 @ 20:47:15 End 2023.07.08 @ 03:49:27 Sessions 4 Manual Loads 0 Difficulty Rogue Special Mode None Game No. 42 Rogue 42 Adventurer 0 Explorer 0 Win Type - Total 0 Types 0/0/0/0/0/0/0/0/0 Lore% 31 Gallery% 33 Achievement% 52 Wizard Run 0 Options --------- ASCII 1 Keyboard 1 Movement Arrows Keybinds 0 Fullscreen 2 Font 24/Proggy Map View 76x50 Tactical HUD 1 Map Filters NONE Filters NONE Steam 1 RUN: 6aed4d0a-84ab-4cd2-a469-9d9d4384ae76